[Event "Titled Tuesday Blitz June 6 Late 2023"]
[White "Kleiman, Jake"]
[Black "QuiesPrecatio"]
[WhiteFideId "2020041"]
[WhiteElo "2674"]
[BlackElo "2450"]
[Result "1-0"]
[Round "4"]
[TimeControl "180+2"]
[Date "2023.06.07"]
[WhiteClock "0:00:07"]
[BlackClock "0:00:08"]
[Board "62"]

1. e4 {[%clk 0:02:57]}  c6 {[%clk 0:02:59]} 2. Nc3 {[%clk 0:02:56]}  d5 {[%clk 0:03:00]} 3. Nf3 {[%clk 0:02:56]}  dxe4 {[%clk 0:02:55]} 4. Nxe4 {[%clk 0:02:57]}  Nf6 {[%clk 0:02:56]} 5. Qe2 {[%clk 0:02:57]}  Nxe4 {[%clk 0:02:55]} 6. Qxe4 {[%clk 0:02:58]}  Be6 {[%clk 0:02:55]} 7. c4 {[%clk 0:02:57]}  Nd7 {[%clk 0:02:51]} 8. d4 {[%clk 0:02:57]}  Nf6 {[%clk 0:02:51]} 9. Qc2 {[%clk 0:02:56]}  Bg4 {[%clk 0:02:50]} 10. Be3 {[%clk 0:02:56]}  Bxf3 {[%clk 0:02:48]} 11. gxf3 {[%clk 0:02:57]}  e6 {[%clk 0:02:49]} 12. O-O-O {[%clk 0:02:56]}  Qa5 {[%clk 0:02:47]} 13. Kb1 {[%clk 0:02:54]}  Be7 {[%clk 0:02:27]} 14. Rg1 {[%clk 0:02:50]}  g6 {[%clk 0:02:25]} 15. h3 {[%clk 0:02:38]}  O-O-O {[%clk 0:02:21]} 16. Rg5 {[%clk 0:02:31]}  Qc7 {[%clk 0:02:19]} 17. Qa4 {[%clk 0:02:31]}  b6 {[%clk 0:02:04]} 18. Rg1 {[%clk 0:02:21]}  c5 {[%clk 0:01:59]} 19. Be2 {[%clk 0:02:02]}  Kb8 {[%clk 0:01:48]} 20. Rd2 {[%clk 0:01:54]}  cxd4 {[%clk 0:01:45]} 21. Bxd4 {[%clk 0:01:54]}  e5 {[%clk 0:01:46]} 22. Bc3 {[%clk 0:01:51]}  Rxd2 {[%clk 0:01:46]} 23. Bxd2 {[%clk 0:01:52]}  Bc5 {[%clk 0:01:45]} 24. Rd1 {[%clk 0:01:29]}  Rd8 {[%clk 0:01:39]} 25. Bg5 {[%clk 0:01:25]}  Rxd1+ {[%clk 0:01:37]} 26. Qxd1 {[%clk 0:01:21]}  Nd7 {[%clk 0:01:09]} 27. Qd5 {[%clk 0:01:14]}  f6 {[%clk 0:01:03]} 28. Bc1 {[%clk 0:01:08]}  Qd6 {[%clk 0:01:02]} 29. Qg8+ {[%clk 0:01:05]}  Nf8 {[%clk 0:00:37]} 30. Qf7 {[%clk 0:00:45]}  Qe7 {[%clk 0:00:35]} 31. Qd5 {[%clk 0:00:40]}  Qe6 {[%clk 0:00:19]} 32. Qd8+ {[%clk 0:00:37]}  Kb7 {[%clk 0:00:20]} 33. Bd3 {[%clk 0:00:32]}  f5 {[%clk 0:00:20]} 34. Be3 {[%clk 0:00:31]}  Nd7 {[%clk 0:00:18]} 35. Qh8 {[%clk 0:00:21]}  Bxe3 {[%clk 0:00:18]} 36. fxe3 {[%clk 0:00:21]}  Qe7 {[%clk 0:00:18]} 37. a3 {[%clk 0:00:20]}  Nc5 {[%clk 0:00:19]} 38. Bc2 {[%clk 0:00:21]}  a5 {[%clk 0:00:16]} 39. Kc1 {[%clk 0:00:20]}  a4 {[%clk 0:00:16]} 40. Kd2 {[%clk 0:00:19]}  Qd7+ {[%clk 0:00:17]} 41. Ke2 {[%clk 0:00:19]}  e4 {[%clk 0:00:16]} 42. f4 {[%clk 0:00:19]}  Qe7 {[%clk 0:00:09]} 43. Qd4 {[%clk 0:00:17]}  Qh4 {[%clk 0:00:08]} 44. Qd5+ {[%clk 0:00:16]}  Kc7 {[%clk 0:00:08]} 45. Qe5+ {[%clk 0:00:15]}  Kc8 {[%clk 0:00:07]} 46. Qe8+ {[%clk 0:00:13]}  Kb7 {[%clk 0:00:06]} 47. Qf7+ {[%clk 0:00:12]}  Ka6 {[%clk 0:00:06]} 48. Qc7 {[%clk 0:00:07]}  Qh5+ {[%clk 0:00:03]} 49. Kd2 {[%clk 0:00:06]}  Qxh3 {[%clk 0:00:03]} 50. Qc8+ {[%clk 0:00:06]}  Ka7 {[%clk 0:00:04]} 51. Qc7+ {[%clk 0:00:06]}  Nb7 {[%clk 0:00:05]} 52. Bxa4 {[%clk 0:00:06]}  Qg2+ {[%clk 0:00:05]} 53. Kc1 {[%clk 0:00:06]}  Qg1+ {[%clk 0:00:05]} 54. Kc2 {[%clk 0:00:06]}  Qf2+ {[%clk 0:00:05]} 55. Kb1 {[%clk 0:00:06]}  Qf1+ {[%clk 0:00:05]} 56. Ka2 {[%clk 0:00:06]}  Qd3 {[%clk 0:00:06]} 57. Bb5 {[%clk 0:00:05]}  Qd6 {[%clk 0:00:05]} 58. Qxh7 {[%clk 0:00:05]}  Qc5 {[%clk 0:00:05]} 59. Qxg6 {[%clk 0:00:05]}  Qxe3 {[%clk 0:00:06]} 60. Qxf5 {[%clk 0:00:05]}  Qd4 {[%clk 0:00:06]} 61. Qe5 {[%clk 0:00:05]}  Qxe5 {[%clk 0:00:06]} 62. fxe5 {[%clk 0:00:06]}  Nc5 {[%clk 0:00:07]} 63. Kb1 {[%clk 0:00:04]}  e3 {[%clk 0:00:06]} 64. Kc2 {[%clk 0:00:04]}  e2 {[%clk 0:00:05]} 65. Kd2 {[%clk 0:00:05]}  Nd3 {[%clk 0:00:05]} 66. Kxe2 {[%clk 0:00:05]}  Nxe5 {[%clk 0:00:06]} 67. Ke3 {[%clk 0:00:05]}  Nf7 {[%clk 0:00:05]} 68. Kd4 {[%clk 0:00:05]}  Nd6 {[%clk 0:00:06]} 69. Kd5 {[%clk 0:00:05]}  Nb7 {[%clk 0:00:07]} 70. b4 {[%clk 0:00:05]}  Kb8 {[%clk 0:00:05]} 71. Kc6 {[%clk 0:00:06]}  Nd8+ {[%clk 0:00:05]} 72. Kxb6 {[%clk 0:00:06]}  Ne6 {[%clk 0:00:06]} 73. c5 {[%clk 0:00:06]}  Nd4 {[%clk 0:00:07]} 74. a4 {[%clk 0:00:07]}  Ne6 {[%clk 0:00:07]} 75. Bc4 {[%clk 0:00:07]}  Nd4 {[%clk 0:00:07]} 76. c6 {[%clk 0:00:07]}  Nc2 {[%clk 0:00:08]} 77. c7+ {[%clk 0:00:07]} 1-0


[Site "https://www.chess.com"]

[Event "Titled Tuesday Blitz June 6 Late 2023"]
[White "Romero Ruscalleda, Josep"]
[Black "Blohberger, Felix"]
[WhiteFideId "2231859"]
[BlackFideId "1632051"]
[WhiteElo "2183"]
[BlackElo "2435"]
[Result "0-1"]
[Round "4"]
[TimeControl "180+2"]
[Date "2023.06.07"]
[WhiteClock "0:02:11"]
[BlackClock "0:01:51"]
[Board "64"]

1. e4 {[%clk 0:02:59]}  e5 {[%clk 0:02:56]} 2. Nf3 {[%clk 0:02:59]}  Nc6 {[%clk 0:02:56]} 3. Bc4 {[%clk 0:02:59]}  Nf6 {[%clk 0:02:56]} 4. d4 {[%clk 0:02:59]}  exd4 {[%clk 0:02:55]} 5. e5 {[%clk 0:02:59]}  d5 {[%clk 0:02:52]} 6. Bb5 {[%clk 0:02:59]}  Ne4 {[%clk 0:02:53]} 7. Nxd4 {[%clk 0:02:59]}  Bd7 {[%clk 0:02:52]} 8. Bxc6 {[%clk 0:03:00]}  bxc6 {[%clk 0:02:52]} 9. O-O {[%clk 0:03:00]}  Bc5 {[%clk 0:02:50]} 10. Be3 {[%clk 0:03:00]}  O-O {[%clk 0:02:49]} 11. Nd2 {[%clk 0:02:59]}  Nxd2 {[%clk 0:02:38]} 12. Qxd2 {[%clk 0:02:59]}  Bb6 {[%clk 0:02:37]} 13. Bg5 {[%clk 0:02:54]}  Qe8 {[%clk 0:02:14]} 14. Rfe1 {[%clk 0:02:53]}  Kh8 {[%clk 0:02:05]} 15. Re3 {[%clk 0:02:41]}  c5 {[%clk 0:02:00]} 16. Ne2 {[%clk 0:02:34]}  d4 {[%clk 0:01:53]} 17. Rh3 {[%clk 0:02:11]}  Bxh3 {[%clk 0:01:51]} 0-1


[Site "https://www.chess.com"]

[Event "Titled Tuesday Blitz June 6 Late 2023"]
[White "Prieto Aranguren, Alain"]
[Black "Ehlvest, Jaan"]
[WhiteFideId "2268906"]
[BlackFideId "4500016"]
[WhiteElo "2209"]
[BlackElo "2442"]
[Result "1-0"]
[Round "4"]
[TimeControl "180+2"]
[Date "2023.06.07"]
[WhiteClock "0:01:28"]
[BlackClock "0:00:39"]
[Board "65"]

1. d4 {[%clk 0:03:00]}  Nf6 {[%clk 0:02:50]} 2. c4 {[%clk 0:03:00]}  e6 {[%clk 0:02:49]} 3. Nc3 {[%clk 0:03:00]}  c5 {[%clk 0:02:48]} 4. d5 {[%clk 0:02:59]}  exd5 {[%clk 0:02:48]} 5. cxd5 {[%clk 0:03:00]}  d6 {[%clk 0:02:47]} 6. Bf4 {[%clk 0:02:55]}  g6 {[%clk 0:02:45]} 7. e3 {[%clk 0:02:55]}  Bg7 {[%clk 0:02:44]} 8. Nf3 {[%clk 0:02:55]}  O-O {[%clk 0:02:42]} 9. h3 {[%clk 0:02:55]}  Re8 {[%clk 0:02:28]} 10. Be2 {[%clk 0:02:55]}  Na6 {[%clk 0:02:28]} 11. O-O {[%clk 0:02:55]}  Nc7 {[%clk 0:02:27]} 12. a4 {[%clk 0:02:54]}  a6 {[%clk 0:02:25]} 13. Bc4 {[%clk 0:02:51]}  Rb8 {[%clk 0:02:24]} 14. a5 {[%clk 0:02:50]}  b5 {[%clk 0:02:20]} 15. axb6 {[%clk 0:02:49]}  Rxb6 {[%clk 0:02:20]} 16. Qd2 {[%clk 0:02:44]}  Ne4 {[%clk 0:02:18]} 17. Nxe4 {[%clk 0:02:44]}  Rxe4 {[%clk 0:02:17]} 18. b3 {[%clk 0:02:43]}  Bxa1 {[%clk 0:02:09]} 19. Rxa1 {[%clk 0:02:42]}  Qf6 {[%clk 0:02:06]} 20. Rd1 {[%clk 0:02:38]}  Bd7 {[%clk 0:02:01]} 21. Qa5 {[%clk 0:02:29]}  Rb7 {[%clk 0:01:59]} 22. Bg5 {[%clk 0:02:10]}  Qb2 {[%clk 0:01:51]} 23. Bd8 {[%clk 0:01:58]}  Nb5 {[%clk 0:01:23]} 24. Qxa6 {[%clk 0:01:52]}  Ra7 {[%clk 0:01:21]} 25. Qb6 {[%clk 0:01:45]}  Ra2 {[%clk 0:01:19]} 26. Rf1 {[%clk 0:01:40]}  Nc3 {[%clk 0:01:05]} 27. Qxd6 {[%clk 0:01:38]}  Be8 {[%clk 0:00:49]} 28. Bg5 {[%clk 0:01:30]}  Nd1 {[%clk 0:00:39]} 29. Bh6 {[%clk 0:01:28]} 1-0


[Site "https://www.chess.com"]

[Event "Titled Tuesday Blitz June 6 Late 2023"]
[White "Gerbelli Neto, Eduardo"]
[Black "Najer, Evgeniy"]
[WhiteFideId "2103281"]
[BlackFideId "4118987"]
[WhiteElo "2178"]
[BlackElo "2545"]
[Result "0-1"]
[Round "4"]
[TimeControl "180+2"]
[Date "2023.06.07"]
[WhiteClock "0:00:01"]
[BlackClock "0:00:27"]
[Board "66"]

1. e4 {[%clk 0:03:00]}  c6 {[%clk 0:02:59]} 2. d4 {[%clk 0:03:00]}  d5 {[%clk 0:02:59]} 3. exd5 {[%clk 0:03:01]}  cxd5 {[%clk 0:02:59]} 4. c4 {[%clk 0:03:01]}  Nf6 {[%clk 0:02:58]} 5. Nc3 {[%clk 0:03:02]}  Nc6 {[%clk 0:02:58]} 6. Nf3 {[%clk 0:03:02]}  a6 {[%clk 0:02:59]} 7. cxd5 {[%clk 0:02:45]}  Nxd5 {[%clk 0:02:58]} 8. Bd3 {[%clk 0:02:45]}  Bg4 {[%clk 0:02:49]} 9. Qb3 {[%clk 0:02:39]}  Bxf3 {[%clk 0:02:47]} 10. gxf3 {[%clk 0:02:36]}  Ndb4 {[%clk 0:02:32]} 11. Be4 {[%clk 0:02:28]}  e6 {[%clk 0:02:32]} 12. Be3 {[%clk 0:02:02]}  Qd7 {[%clk 0:01:54]} 13. d5 {[%clk 0:01:33]}  exd5 {[%clk 0:01:35]} 14. Nxd5 {[%clk 0:01:25]}  Nxd5 {[%clk 0:01:31]} 15. Qxd5 {[%clk 0:01:04]}  Bb4+ {[%clk 0:01:09]} 16. Ke2 {[%clk 0:01:00]}  Qe7 {[%clk 0:01:05]} 17. Rad1 {[%clk 0:00:43]}  O-O {[%clk 0:00:57]} 18. Rhg1 {[%clk 0:00:34]}  Rad8 {[%clk 0:00:52]} 19. Qg5 {[%clk 0:00:19]}  Qxg5 {[%clk 0:00:52]} 20. Rxg5 {[%clk 0:00:19]}  Rxd1 {[%clk 0:00:51]} 21. Kxd1 {[%clk 0:00:20]}  g6 {[%clk 0:00:44]} 22. Rd5 {[%clk 0:00:17]}  f5 {[%clk 0:00:42]} 23. Bc2 {[%clk 0:00:16]}  Kg7 {[%clk 0:00:39]} 24. Rd7+ {[%clk 0:00:15]}  Rf7 {[%clk 0:00:38]} 25. Bh6+ {[%clk 0:00:13]}  Kf6 {[%clk 0:00:39]} 26. Bg5+ {[%clk 0:00:12]}  Ke6 {[%clk 0:00:38]} 27. Rxf7 {[%clk 0:00:09]}  Kxf7 {[%clk 0:00:38]} 28. Bb3+ {[%clk 0:00:10]}  Kg7 {[%clk 0:00:38]} 29. Be3 {[%clk 0:00:07]}  Bd6 {[%clk 0:00:36]} 30. h3 {[%clk 0:00:05]}  Be5 {[%clk 0:00:37]} 31. Kc2 {[%clk 0:00:06]}  Kf6 {[%clk 0:00:33]} 32. a3 {[%clk 0:00:05]}  Nd4+ {[%clk 0:00:29]} 33. Bxd4 {[%clk 0:00:02]}  Bxd4 {[%clk 0:00:30]} 34. Bd5 {[%clk 0:00:02]}  b6 {[%clk 0:00:30]} 35. b4 {[%clk 0:00:01]}  Kg5 {[%clk 0:00:27]} 0-1


[Site "https://www.chess.com"]

[Event "Titled Tuesday Blitz June 6 Late 2023"]
[White "Rodriguez Santiago, Jaime"]
[Black "Papp, Levente"]
[WhiteFideId "3100898"]
[BlackFideId "751243"]
[WhiteElo "2025"]
[BlackElo "2380"]
[Result "0-1"]
[Round "4"]
[TimeControl "180+2"]
[Date "2023.06.07"]
[WhiteClock "0:00:04"]
[BlackClock "0:00:43"]
[Board "67"]

1. d4 {[%clk 0:03:00]}  e6 {[%clk 0:02:59]} 2. c4 {[%clk 0:02:59]}  b6 {[%clk 0:03:00]} 3. Nc3 {[%clk 0:02:56]}  Bb7 {[%clk 0:03:01]} 4. Bf4 {[%clk 0:02:54]}  Nf6 {[%clk 0:02:56]} 5. e3 {[%clk 0:02:52]}  Bb4 {[%clk 0:02:54]} 6. Rc1 {[%clk 0:02:51]}  O-O {[%clk 0:02:53]} 7. Nf3 {[%clk 0:02:47]}  Ne4 {[%clk 0:02:49]} 8. Bd3 {[%clk 0:02:45]}  f5 {[%clk 0:02:46]} 9. h4 {[%clk 0:02:17]}  d6 {[%clk 0:02:42]} 10. a3 {[%clk 0:02:01]}  Bxc3+ {[%clk 0:02:42]} 11. bxc3 {[%clk 0:02:01]}  Nd7 {[%clk 0:02:42]} 12. Ng5 {[%clk 0:01:58]}  Qe8 {[%clk 0:02:28]} 13. Bxe4 {[%clk 0:01:31]}  Bxe4 {[%clk 0:02:23]} 14. f3 {[%clk 0:01:30]}  Bb7 {[%clk 0:02:22]} 15. d5 {[%clk 0:01:29]}  Nc5 {[%clk 0:01:59]} 16. O-O {[%clk 0:01:01]}  e5 {[%clk 0:01:44]} 17. Bg3 {[%clk 0:00:59]}  Ba6 {[%clk 0:01:44]} 18. Rf2 {[%clk 0:00:35]}  h6 {[%clk 0:01:37]} 19. Ne6 {[%clk 0:00:31]}  Nxe6 {[%clk 0:01:36]} 20. dxe6 {[%clk 0:00:31]}  Qxe6 {[%clk 0:01:33]} 21. Rd2 {[%clk 0:00:18]}  Bxc4 {[%clk 0:01:32]} 22. Qa4 {[%clk 0:00:17]}  Kh7 {[%clk 0:01:03]} 23. h5 {[%clk 0:00:17]}  Bd5 {[%clk 0:00:56]} 24. e4 {[%clk 0:00:15]}  fxe4 {[%clk 0:00:55]} 25. fxe4 {[%clk 0:00:15]}  Bb7 {[%clk 0:00:55]} 26. Rcd1 {[%clk 0:00:14]}  Qg4 {[%clk 0:00:55]} 27. Rd3 {[%clk 0:00:13]}  Qxh5 {[%clk 0:00:47]} 28. Qd7 {[%clk 0:00:10]}  Bxe4 {[%clk 0:00:47]} 29. R3d2 {[%clk 0:00:07]}  Qg6 {[%clk 0:00:47]} 30. Bh2 {[%clk 0:00:04]}  Rf7 {[%clk 0:00:45]} 31. Qb5 {[%clk 0:00:04]}  Raf8 {[%clk 0:00:43]} 0-1


[Site "https://www.chess.com"]

[Event "Titled Tuesday Blitz June 6 Late 2023"]
[White "Amburgy, Ryan"]
[Black "Wang, Alexander J"]
[WhiteFideId "30924820"]
[BlackFideId "30955270"]
[WhiteElo "2134"]
[BlackElo "2273"]
[Result "1-0"]
[Round "4"]
[TimeControl "180+2"]
[Date "2023.06.07"]
[WhiteClock "0:01:39"]
[BlackClock "0:01:22"]
[Board "68"]

1. d4 {[%clk 0:03:00]}  d5 {[%clk 0:02:59]} 2. c4 {[%clk 0:03:01]}  e6 {[%clk 0:02:59]} 3. Nc3 {[%clk 0:03:02]}  c5 {[%clk 0:03:00]} 4. cxd5 {[%clk 0:03:01]}  exd5 {[%clk 0:03:01]} 5. Nf3 {[%clk 0:03:02]}  Nc6 {[%clk 0:03:01]} 6. dxc5 {[%clk 0:03:01]}  d4 {[%clk 0:03:02]} 7. Na4 {[%clk 0:03:02]}  Bxc5 {[%clk 0:03:02]} 8. Nxc5 {[%clk 0:03:02]}  Qa5+ {[%clk 0:03:03]} 9. Bd2 {[%clk 0:03:03]}  Qxc5 {[%clk 0:03:03]} 10. b4 {[%clk 0:03:03]}  Qd6 {[%clk 0:02:59]} 11. Rc1 {[%clk 0:02:49]}  Nf6 {[%clk 0:02:53]} 12. b5 {[%clk 0:02:45]}  Ne5 {[%clk 0:02:50]} 13. Qb3 {[%clk 0:02:41]}  Nxf3+ {[%clk 0:02:50]} 14. Qxf3 {[%clk 0:02:39]}  O-O {[%clk 0:02:49]} 15. g3 {[%clk 0:02:36]}  Be6 {[%clk 0:02:30]} 16. Qf4 {[%clk 0:02:10]}  Qxf4 {[%clk 0:02:28]} 17. Bxf4 {[%clk 0:02:11]}  Bd5 {[%clk 0:02:25]} 18. Rg1 {[%clk 0:02:09]}  Rfe8 {[%clk 0:02:22]} 19. a4 {[%clk 0:02:04]}  d3 {[%clk 0:02:19]} 20. e3 {[%clk 0:01:58]}  Be4 {[%clk 0:02:14]} 21. Bh3 {[%clk 0:01:51]}  Red8 {[%clk 0:01:57]} 22. Kd2 {[%clk 0:01:51]}  Bg6 {[%clk 0:01:48]} 23. Bg2 {[%clk 0:01:49]}  Ne4+ {[%clk 0:01:43]} 24. Bxe4 {[%clk 0:01:49]}  Bxe4 {[%clk 0:01:44]} 25. Rc4 {[%clk 0:01:46]}  f5 {[%clk 0:01:43]} 26. Rgc1 {[%clk 0:01:44]}  h6 {[%clk 0:01:40]} 27. h4 {[%clk 0:01:44]}  Bd5 {[%clk 0:01:34]} 28. Rc7 {[%clk 0:01:42]}  Be4 {[%clk 0:01:22]} 29. Be5 {[%clk 0:01:39]} 1-0


[Site "https://www.chess.com"]

[Event "Titled Tuesday Blitz June 6 Late 2023"]
[White "Kejzar, Petra"]
[Black "Popilski, Gil"]
[WhiteFideId "14610213"]
[BlackFideId "2809060"]
[WhiteElo "2089"]
[BlackElo "2537"]
[Result "0-1"]
[Round "4"]
[TimeControl "180+2"]
[Date "2023.06.07"]
[WhiteClock "0:00:57"]
[BlackClock "0:01:02"]
[Board "69"]

1. e4 {[%clk 0:03:00]}  c5 {[%clk 0:02:59]} 2. Nf3 {[%clk 0:03:01]}  d6 {[%clk 0:02:58]} 3. d4 {[%clk 0:03:01]}  cxd4 {[%clk 0:02:56]} 4. Nxd4 {[%clk 0:03:02]}  Nf6 {[%clk 0:02:54]} 5. Nc3 {[%clk 0:03:03]}  e6 {[%clk 0:02:54]} 6. Be3 {[%clk 0:03:03]}  Be7 {[%clk 0:02:46]} 7. f3 {[%clk 0:03:03]}  Nc6 {[%clk 0:02:44]} 8. Qd2 {[%clk 0:03:03]}  a6 {[%clk 0:02:44]} 9. g4 {[%clk 0:03:03]}  Nd7 {[%clk 0:02:44]} 10. O-O-O {[%clk 0:03:01]}  Nde5 {[%clk 0:02:44]} 11. f4 {[%clk 0:02:47]}  Nxg4 {[%clk 0:02:39]} 12. Rg1 {[%clk 0:02:47]}  Nxe3 {[%clk 0:02:38]} 13. Qxe3 {[%clk 0:02:47]}  O-O {[%clk 0:02:32]} 14. Qg3 {[%clk 0:02:29]}  g6 {[%clk 0:02:32]} 15. f5 {[%clk 0:02:24]}  Nxd4 {[%clk 0:02:26]} 16. fxg6 {[%clk 0:02:21]}  fxg6 {[%clk 0:02:23]} 17. Rxd4 {[%clk 0:02:21]}  Qb6 {[%clk 0:02:18]} 18. Rd3 {[%clk 0:02:14]}  Qf2 {[%clk 0:02:16]} 19. Bh3 {[%clk 0:02:06]}  Qxg3 {[%clk 0:02:14]} 20. Rdxg3 {[%clk 0:02:07]}  Rf2 {[%clk 0:02:11]} 21. R3g2 {[%clk 0:01:55]}  Rxg2 {[%clk 0:02:09]} 22. Rxg2 {[%clk 0:01:56]}  Bd7 {[%clk 0:02:08]} 23. Ne2 {[%clk 0:01:56]}  Rf8 {[%clk 0:02:06]} 24. Nd4 {[%clk 0:01:54]}  Rf6 {[%clk 0:02:06]} 25. Kd2 {[%clk 0:01:52]}  Bd8 {[%clk 0:02:04]} 26. c3 {[%clk 0:01:48]}  Kf7 {[%clk 0:02:02]} 27. Re2 {[%clk 0:01:48]}  Bc7 {[%clk 0:02:00]} 28. Nc2 {[%clk 0:01:48]}  Bb5 {[%clk 0:01:59]} 29. Rg2 {[%clk 0:01:41]}  Bf1 {[%clk 0:01:52]} 30. Rg3 {[%clk 0:01:42]}  d5 {[%clk 0:01:52]} 31. exd5 {[%clk 0:01:31]}  exd5 {[%clk 0:01:18]} 32. Bxf1 {[%clk 0:01:03]}  Bxg3 {[%clk 0:01:17]} 33. Bg2 {[%clk 0:01:03]}  Rf2+ {[%clk 0:01:16]} 34. Kd3 {[%clk 0:01:01]}  Rxg2 {[%clk 0:01:14]} 35. Ne3 {[%clk 0:01:01]}  Rxh2 {[%clk 0:01:13]} 36. Nxd5 {[%clk 0:01:01]}  Rxb2 {[%clk 0:01:13]} 37. c4 {[%clk 0:01:01]}  Rxa2 {[%clk 0:01:13]} 38. Ke4 {[%clk 0:01:01]}  h5 {[%clk 0:01:13]} 39. c5 {[%clk 0:01:01]}  Ra3 {[%clk 0:01:12]} 40. Nb6 {[%clk 0:00:59]}  Bf2 {[%clk 0:01:11]} 41. Nc4 {[%clk 0:00:55]}  Bxc5 {[%clk 0:01:10]} 42. Kd5 {[%clk 0:00:54]}  Bf8 {[%clk 0:01:09]} 43. Ne5+ {[%clk 0:00:54]}  Kg7 {[%clk 0:01:09]} 44. Ke4 {[%clk 0:00:54]}  Ra4+ {[%clk 0:01:08]} 45. Kd5 {[%clk 0:00:54]}  Ra5+ {[%clk 0:01:08]} 46. Ke6 {[%clk 0:00:54]}  Rxe5+ {[%clk 0:01:09]} 47. Kxe5 {[%clk 0:00:54]}  b5 {[%clk 0:01:09]} 48. Kd4 {[%clk 0:00:55]}  a5 {[%clk 0:01:09]} 49. Kc3 {[%clk 0:00:56]}  a4 {[%clk 0:01:09]} 50. Kd3 {[%clk 0:00:56]}  a3 {[%clk 0:01:09]} 51. Kc2 {[%clk 0:00:57]}  b4 {[%clk 0:01:09]} 52. Kb3 {[%clk 0:00:57]}  h4 {[%clk 0:01:10]} 53. Ka2 {[%clk 0:00:57]}  h3 {[%clk 0:01:11]} 54. Kb1 {[%clk 0:00:55]}  h2 {[%clk 0:01:11]} 55. Ka2 {[%clk 0:00:55]}  h1=B {[%clk 0:01:11]} 56. Kb3 {[%clk 0:00:56]}  g5 {[%clk 0:01:10]} 57. Ka2 {[%clk 0:00:56]}  g4 {[%clk 0:01:09]} 58. Kb3 {[%clk 0:00:57]}  g3 {[%clk 0:01:10]} 59. Ka2 {[%clk 0:00:57]}  g2 {[%clk 0:01:11]} 60. Kb3 {[%clk 0:00:58]}  g1=B {[%clk 0:01:10]} 61. Ka4 {[%clk 0:00:58]}  Bd5 {[%clk 0:01:09]} 62. Kb5 {[%clk 0:00:57]}  a2 {[%clk 0:01:10]} 63. Ka6 {[%clk 0:00:56]}  Bc6 {[%clk 0:01:06]} 64. Ka5 {[%clk 0:00:57]}  a1=R# {[%clk 0:01:02]} 0-1


[Site "https://www.chess.com"]

[Event "Titled Tuesday Blitz June 6 Late 2023"]
[White "Cagara, Paulina"]
[Black "Bitoon, Richard"]
[WhiteFideId "1124870"]
[BlackFideId "5201110"]
[WhiteElo "1967"]
[BlackElo "2374"]
[Result "0-1"]
[Round "4"]
[TimeControl "180+2"]
[Date "2023.06.07"]
[WhiteClock "0:00:24"]
[BlackClock "0:00:19"]
[Board "72"]

1. e4 {[%clk 0:03:00]}  e5 {[%clk 0:03:00]} 2. Nf3 {[%clk 0:03:00]}  Nc6 {[%clk 0:03:00]} 3. c3 {[%clk 0:03:00]}  d5 {[%clk 0:02:58]} 4. Qa4 {[%clk 0:02:59]}  f6 {[%clk 0:02:56]} 5. d3 {[%clk 0:02:58]}  Ne7 {[%clk 0:02:48]} 6. Be2 {[%clk 0:02:55]}  Be6 {[%clk 0:02:33]} 7. O-O {[%clk 0:02:54]}  Qd7 {[%clk 0:02:32]} 8. Be3 {[%clk 0:02:45]}  g5 {[%clk 0:02:29]} 9. Bc5 {[%clk 0:02:38]}  g4 {[%clk 0:02:28]} 10. Nfd2 {[%clk 0:02:34]}  Bg7 {[%clk 0:02:21]} 11. c4 {[%clk 0:02:32]}  d4 {[%clk 0:02:13]} 12. b4 {[%clk 0:02:28]}  Ng6 {[%clk 0:02:08]} 13. b5 {[%clk 0:02:27]}  Nd8 {[%clk 0:02:08]} 14. Rc1 {[%clk 0:02:02]}  h5 {[%clk 0:02:05]} 15. Qa3 {[%clk 0:01:46]}  Nf7 {[%clk 0:02:05]} 16. Nb3 {[%clk 0:01:45]}  Ng5 {[%clk 0:02:03]} 17. Bb4 {[%clk 0:01:43]}  Qc8 {[%clk 0:01:59]} 18. Nc5 {[%clk 0:01:43]}  Bf7 {[%clk 0:01:59]} 19. Nd2 {[%clk 0:01:37]}  Nf4 {[%clk 0:01:56]} 20. Bf1 {[%clk 0:01:37]}  h4 {[%clk 0:01:55]} 21. Ndb3 {[%clk 0:01:23]}  g3 {[%clk 0:01:35]} 22. fxg3 {[%clk 0:01:23]}  hxg3 {[%clk 0:01:35]} 23. hxg3 {[%clk 0:01:21]}  Qg4 {[%clk 0:01:35]} 24. Be1 {[%clk 0:01:04]}  Bf8 {[%clk 0:01:21]} 25. b6 {[%clk 0:01:03]}  c6 {[%clk 0:01:12]} 26. bxa7 {[%clk 0:00:57]}  Ne2+ {[%clk 0:00:53]} 27. Bxe2 {[%clk 0:00:35]}  Qxe2 {[%clk 0:00:54]} 28. Qb4 {[%clk 0:00:34]}  Be6 {[%clk 0:00:17]} 29. Qxb7 {[%clk 0:00:28]}  Nf3+ {[%clk 0:00:18]} 30. gxf3 {[%clk 0:00:24]}  Qh2+ {[%clk 0:00:19]} 31. Kf1 {[%clk 0:00:24]}  Bh3# {[%clk 0:00:19]} 0-1


[Site "https://www.chess.com"]

[Event "Titled Tuesday Blitz June 6 Late 2023"]
[White "Vlassov, Nikolai"]
[Black "Kornyukov, Alexey"]
[WhiteFideId "4103360"]
[BlackFideId "4150457"]
[WhiteElo "2324"]
[BlackElo "2352"]
[Result "1-0"]
[Round "4"]
[TimeControl "180+2"]
[Date "2023.06.07"]
[WhiteClock "0:00:58"]
[BlackClock "0:00:04"]
[Board "73"]

1. e4 {[%clk 0:03:00]}  c5 {[%clk 0:02:57]} 2. c3 {[%clk 0:03:00]}  Nf6 {[%clk 0:02:54]} 3. e5 {[%clk 0:03:00]}  Nd5 {[%clk 0:02:55]} 4. d4 {[%clk 0:03:01]}  cxd4 {[%clk 0:02:56]} 5. cxd4 {[%clk 0:03:02]}  d6 {[%clk 0:02:56]} 6. Bc4 {[%clk 0:03:02]}  dxe5 {[%clk 0:02:50]} 7. dxe5 {[%clk 0:03:01]}  Be6 {[%clk 0:02:29]} 8. Nc3 {[%clk 0:02:49]}  Nc7 {[%clk 0:02:04]} 9. Qxd8+ {[%clk 0:02:47]}  Kxd8 {[%clk 0:02:05]} 10. Bxe6 {[%clk 0:02:35]}  Nxe6 {[%clk 0:02:06]} 11. Be3 {[%clk 0:02:34]}  Nc6 {[%clk 0:02:06]} 12. O-O-O+ {[%clk 0:02:29]}  Ke8 {[%clk 0:01:42]} 13. f4 {[%clk 0:02:28]}  g6 {[%clk 0:01:42]} 14. Nf3 {[%clk 0:02:27]}  Bh6 {[%clk 0:01:37]} 15. Ne2 {[%clk 0:02:02]}  Rc8 {[%clk 0:01:28]} 16. Kb1 {[%clk 0:02:02]}  f6 {[%clk 0:01:10]} 17. exf6 {[%clk 0:01:46]}  exf6 {[%clk 0:01:11]} 18. Rhe1 {[%clk 0:01:44]}  Kf7 {[%clk 0:00:40]} 19. Rd7+ {[%clk 0:01:42]}  Ne7 {[%clk 0:00:35]} 20. Rxb7 {[%clk 0:01:37]}  Rhd8 {[%clk 0:00:28]} 21. Ned4 {[%clk 0:01:24]}  Nc5 {[%clk 0:00:16]} 22. Rxa7 {[%clk 0:01:21]}  Nd3 {[%clk 0:00:11]} 23. Re2 {[%clk 0:01:12]}  Re8 {[%clk 0:00:04]} 24. Nb5 {[%clk 0:00:58]} 1-0


[Site "https://www.chess.com"]